bitfinex/quotes_SOLUSD_20250611
["timestamp","ask_amount","ask_price","bid_price","bid_amount"]
[1749641245372,16.46180183,164.72,164.66,26.0]
[1749641245580,16.46180183,164.72,164.68,10.39089363]
[1749641248093,10.39089363,164.71,164.66,10.39089363]
[1749641248482,10.39089363,164.7,164.65,27.6357]
[1749641248669,10.39089363,164.7,164.65,12.02659363]
[1749641249093,10.39089363,164.71,164.66,10.39089363]
[1749641249286,6.07164541,164.7,164.66,10.39089363]
[1749641250494,5.28,164.73,164.68,10.39089363]
[1749641250681,5.28,164.73,164.69,10.39089363]
[1749641250682,21.74156373,164.73,164.69,10.39089363]
[1749641251002,21.74156373,164.73,164.68,10.39089363]
[1749641251496,6.0706701,164.73,164.69,10.39089363]
[1749641251798,21.74156373,164.73,164.69,10.39089363]
[1749641255098,11.3506701,164.73,164.69,10.39089363]
[1749641255300,21.74156373,164.73,164.69,10.39089363]
[1749641256097,11.3506701,164.73,164.68,10.39089363]
[1749641256288,10.39089363,164.72,164.67,10.39089363]
[1749641256900,10.39089363,164.72,164.68,10.39089363]
[1749641258098,6.07127678,164.71,164.68,10.39089363]
[1749641258707,6.07127678,164.71,164.65,27.6357]
[1749641258878,16.46217041,164.71,164.66,10.39089363]
[1749641259080,10.39089363,164.7,164.66,10.39089363]
[1749641259605,16.46217041,164.71,164.66,10.39089363]
[1749641263005,10.39089363,164.7,164.65,10.39089363]
[1749641263187,6.07127678,164.71,164.64,100.29089363]
[1749641263188,10.39089363,164.69,164.64,100.29089363]
[1749641263387,10.39089363,164.69,164.64,10.39089363]
[1749641263698,10.39089363,164.7,164.65,10.39089363]
[1749641264287,21.24946875,164.71,164.65,10.39089363]
[1749641264518,31.64036238,164.71,164.66,10.39089363]
[1749641265598,10.39089363,164.7,164.65,10.39089363]
[1749641266189,6.07201408,164.69,164.65,10.39089363]
[1749641266392,16.46290771,164.69,164.65,10.39089363]
[1749641268321,10.39089363,164.7,164.65,10.39089363]
[1749641269394,10.39089363,164.71,164.66,10.39089363]
[1749641269789,16.46180183,164.72,164.68,10.39089363]
[1749641269994,21.74180183,164.72,164.68,10.39089363]
[1749641270208,21.74180183,164.72,164.67,10.39089363]
[1749641271116,16.46252541,164.71,164.67,10.39089363]
[1749641272211,6.07163178,164.71,164.67,10.39089363]
[1749641277818,6.07163178,164.71,164.63,140.62]
[1749641277998,6.07163178,164.71,164.68,10.39089363]
[1749641279316,10.39089363,164.7,164.65,10.39089363]
[1749641279628,10.39089363,164.7,164.66,10.39089363]
[1749641280296,6.07163178,164.71,164.66,10.39089363]
[1749641280494,6.07065374,164.73,164.7,10.39089363]
[1749641280913,11.35032277,164.74,164.71,10.39089363]
[1749641281109,5.28,164.74,164.72,10.39089363]
[1749641281322,6.06869765,164.78,164.73,10.39089363]
[1749641281498,11.34869765,164.78,164.75,10.39089363]
[1749641281706,5.28,164.78,164.76,10.39089363]
[1749641282225,5.28,164.78,164.77,10.39089363]
[1749641282922,5.28,164.78,164.76,10.39089363]
[1749641283725,11.3487915,164.78,164.76,10.39089363]
[1749641284022,11.3487915,164.78,164.75,10.39089363]
[1749641284223,11.3487915,164.78,164.76,10.39089363]
[1749641286425,11.3487915,164.78,164.71,26.0]
[1749641286629,11.3487915,164.78,164.74,10.39089363]
[1749641286806,11.3487915,164.78,164.75,10.39089363]
[1749641287701,11.3487915,164.78,164.77,10.39089363]
[1749641287702,5.28,164.78,164.77,10.39089363]
[1749641288405,11.34869765,164.78,164.77,10.39089363]
[1749641288728,5.28,164.78,164.77,10.39089363]
[1749641291828,11.34869765,164.78,164.76,10.39089363]
[1749641295035,11.34869765,164.78,164.77,10.39089363]
[1749641298037,11.34869765,164.78,164.76,10.39089363]
[1749641298925,11.34869765,164.78,164.72,10.39089363]
[1749641299238,11.34869765,164.78,164.75,10.39089363]
[1749641301140,5.28,164.78,164.77,10.39089363]
[1749641308246,5.28,164.78,164.75,26.2366]
[1749641308247,5.28,164.78,164.75,24.7]
[1749641308455,5.28,164.78,164.77,10.39089363]
[1749641309531,18.64964886,164.74,164.63,1.6038]
[1749641309751,26.0,164.75,164.68,10.39089363]
[1749641309952,10.39089363,164.73,164.68,10.39089363]
[1749641311559,6.0709082,164.72,164.68,10.39089363]
[1749641314356,16.46180183,164.72,164.68,10.39089363]
[1749641314770,16.46180183,164.72,164.64,26.0]
[1749641315066,16.46180183,164.72,164.68,10.39089363]
[1749641315259,10.39089363,164.72,164.68,10.39089363]
[1749641315512,16.4614479,164.73,164.68,10.39089363]
[1749641316870,10.39089363,164.73,164.69,10.39089363]
[1749641318470,16.46168307,164.73,164.69,10.39089363]
[1749641319051,16.46168307,164.73,164.66,5.66068285]
[1749641319241,16.46168307,164.73,164.66,10.39089363]
[1749641319242,10.39089363,164.7,164.66,10.39089363]
[1749641319448,6.06980273,164.75,164.69,10.39089363]
[1749641319770,7.7317,164.78,164.72,10.39089363]
[1749641319771,5.28,164.76,164.72,10.39089363]
[1749641320548,11.3497147,164.76,164.72,10.39089363]
[1749641320750,5.28,164.76,164.73,10.39089363]
[1749641321077,5.28,164.76,164.74,10.39089363]
[1749641321273,5.28,164.76,164.75,10.39089363]
[1749641321456,12.23533094,164.78,164.75,10.39089363]
[1749641321975,12.23533094,164.78,164.74,10.39089363]
[1749641323579,12.23533094,164.78,164.75,10.39089363]
[1749641323947,11.34847528,164.79,164.76,10.39089363]
[1749641324160,5.28,164.79,164.76,10.39089363]
[1749641324367,5.28,164.79,164.77,10.39089363]
[1749641324958,5.28,164.79,164.78,10.39089363]
[1749641329168,5.28,164.79,164.75,5.66068285]
[1749641329474,5.28,164.79,164.78,10.39089363]
[1749641329680,5.28,164.79,164.75,5.66068285]
[1749641329878,5.28,164.79,164.72,7.54757714]
[1749641329879,21.73922301,164.79,164.74,10.39089363]
[1749641330043,11.34832938,164.79,164.75,10.39089363]
[1749641330548,11.34832938,164.79,164.76,10.39089363]
[1749641330766,6.06832938,164.79,164.76,10.39089363]
[1749641331757,6.06832938,164.79,164.77,10.39089363]
[1749641332867,6.06832938,164.79,164.76,10.39089363]
[1749641333476,6.06832938,164.79,164.73,5.66068285]
[1749641333786,6.06832938,164.79,164.76,10.39089363]
[1749641334159,6.06796116,164.8,164.76,10.39089363]
[1749641334358,11.34796116,164.8,164.76,10.39089363]
[1749641334757,6.06796116,164.8,164.76,10.39089363]
[1749641334957,11.34796116,164.8,164.76,10.39089363]
[1749641336766,21.73885479,164.8,164.75,10.39089363]
[1749641339369,16.45885479,164.8,164.75,10.39089363]
[1749641339561,21.73885479,164.8,164.75,10.39089363]
[1749641340567,10.39089363,164.78,164.74,10.39089363]
[1749641340986,28.11626407,164.8,164.73,16.04045638]
[1749641341194,10.39089363,164.78,164.73,16.04045638]
[1749641342267,10.39089363,164.74,164.69,16.04045638]
[1749641342779,10.39089363,164.74,164.69,10.39089363]
[1749641343155,6.07053967,164.73,164.69,10.39089363]
[1749641344362,6.07053967,164.73,164.68,10.39089363]
[1749641344363,16.4614333,164.73,164.68,10.39089363]
[1749641345383,16.4614333,164.73,164.66,31.64956275]
[1749641345384,10.39089363,164.72,164.67,10.39089363]
[1749641345776,10.39089363,164.7,164.65,5.64956275]
[1749641345983,10.39089363,164.7,164.65,16.04045638]
[1749641346177,10.39089363,164.7,164.66,10.39089363]
[1749641346558,10.39089363,164.7,164.66,16.04045638]
[1749641347460,16.46285722,164.7,164.66,10.39089363]
[1749641347662,6.07196359,164.7,164.66,10.39089363]
[1749641350075,16.46285722,164.7,164.65,10.39089363]
[1749641352191,21.74227651,164.71,164.66,10.39089363]
[1749641352372,11.35138288,164.71,164.67,10.39089363]
[1749641353065,21.74227651,164.71,164.67,10.39089363]
[1749641356392,11.35138288,164.71,164.67,10.39089363]
[1749641357195,11.35138288,164.71,164.63,5.64956275]
[1749641357196,21.74227651,164.71,164.66,10.39089363]
[1749641359277,5.28,164.71,164.68,10.39089363]
[1749641361096,5.28,164.71,164.67,10.39089363]
[1749641361397,21.74232053,164.71,164.67,10.39089363]
[1749641363392,11.3514269,164.71,164.67,10.39089363]
[1749641363998,5.28,164.71,164.7,10.39089363]
[1749641364296,32.3778,164.76,164.7,10.39089363]
[1749641364297,6.07031212,164.74,164.7,10.39089363]
[1749641366899,21.74082415,164.75,164.7,10.39089363]
[1749641368308,21.74082415,164.75,164.71,10.39089363]
[1749641369187,21.74082415,164.75,164.7,10.39089363]
[1749641374708,5.28,164.75,164.72,10.39089363]
[1749641375008,5.28,164.75,164.73,10.39089363]
[1749641375216,5.28,164.75,164.72,10.39089363]
[1749641376105,5.28,164.75,164.73,10.39089363]
[1749641377490,5.28,164.75,164.74,10.39089363]
[1749641378889,5.28,164.75,164.73,10.39089363]
[1749641379298,12.66368469,164.8,164.74,10.39089363]
[1749641379509,5.28,164.8,164.77,10.39089363]
[1749641379813,11.34802457,164.8,164.77,10.39089363]
[1749641380402,5.28,164.8,164.77,10.39089363]
[1749641384323,5.28,164.8,164.75,5.64562559]
[1749641384526,5.28,164.8,164.76,10.39089363]
[1749641385404,5.28,164.8,164.76,16.03651922]
[1749641386125,5.28,164.8,164.78,10.39089363]
[1749641386309,5.28,164.8,164.79,10.39089363]
[1749641387422,5.28,164.8,164.76,5.64562559]
[1749641387611,5.28,164.8,164.78,10.39089363]
[1749641390801,5.28,164.8,164.74,5.64562559]
[1749641391106,5.28,164.8,164.78,10.39089363]
[1749641395541,5.28,164.8,164.77,10.39089363]
[1749641400617,5.28,164.8,164.78,10.39089363]
[1749641402820,5.28,164.8,164.77,10.39089363]
[1749641403654,10.39089363,164.79,164.75,5.64562559]
[1749641403943,15.67089363,164.8,164.75,10.39089363]
[1749641404331,5.28,164.8,164.78,10.39089363]
[1749641404520,5.28,164.8,164.79,10.39089363]
[1749641405248,5.26,164.87,164.79,27.92791285]
[1749641405589,5.26,164.87,164.81,5.64815984]
[1749641405590,10.39089363,164.86,164.81,5.64815984]
[1749641405848,10.39089363,164.85,164.8,10.39089363]
[1749641406013,5.26,164.87,164.79,10.39089363]
[1749641406014,10.39089363,164.84,164.79,10.39089363]
[1749641406212,10.39089363,164.83,164.79,10.39089363]
[1749641406841,16.45777257,164.83,164.79,10.39089363]
[1749641407036,16.45701434,164.85,164.8,10.39089363]
[1749641407415,6.06612071,164.85,164.79,10.39089363]
[1749641407618,10.39089363,164.84,164.79,10.39089363]
[1749641408532,10.39089363,164.84,164.79,16.03905347]
[1749641408723,6.06685676,164.83,164.79,16.03905347]
[1749641408925,16.45775039,164.83,164.79,16.03905347]
[1749641409536,16.45775039,164.83,164.8,5.64815984]
[1749641410535,10.39089363,164.83,164.8,5.64815984]
[1749641411268,6.06612071,164.85,164.81,10.39089363]
[1749641411560,16.45679905,164.86,164.81,16.03905347]
[1749641412444,5.26,164.87,164.81,16.03905347]
[1749641412445,16.45726722,164.85,164.81,5.64815984]
[1749641413559,5.26,164.87,164.82,10.39089363]
[1749641413760,6.06539121,164.87,164.83,16.03905347]
[1749641414245,6.06539121,164.87,164.84,5.64815984]
[1749641414567,16.4559599,164.88,164.84,16.03905347]
[1749641414867,16.4559599,164.88,164.84,5.64815984]
[1749641416765,6.06575275,164.86,164.84,5.64815984]
[1749641417344,16.45664638,164.86,164.83,5.64815984]
[1749641417747,16.45664638,164.86,164.84,5.64815984]
[1749641418157,16.45664638,164.86,164.83,5.64815984]
[1749641419044,16.45664638,164.86,164.82,5.64815984]
[1749641420594,10.39089363,164.85,164.82,5.64815984]
[1749641421256,16.45664638,164.86,164.82,5.64815984]
[1749641422984,6.06575275,164.86,164.82,5.64815984]
[1749641423269,16.45664638,164.86,164.82,5.64815984]
[1749641423973,21.71637656,164.87,164.83,10.39089363]
[1749641424153,21.71637656,164.87,164.83,16.03905347]
[1749641424647,21.71637656,164.87,164.83,5.64815984]
[1749641425047,21.71637656,164.87,164.84,5.64815984]
[1749641425346,21.71637656,164.87,164.83,5.64815984]
[1749641425541,21.71637656,164.87,164.83,16.03905347]
[1749641425771,21.71637656,164.87,164.84,5.64815984]
[1749641426150,5.26,164.87,164.84,16.03905347]
[1749641426362,5.26,164.87,164.85,16.03905347]
[1749641426682,11.32441635,164.9,164.86,16.03905347]
[1749641426854,11.32441635,164.9,164.87,10.39089363]
[1749641427173,11.32441635,164.9,164.87,16.03905347]
[1749641427674,5.26,164.9,164.87,16.03905347]
[1749641427876,5.26,164.9,164.88,10.39089363]
[1749641428772,6.06343718,164.93,164.89,10.39089363]
[1749641428976,28.14221834,164.94,164.9,10.39089363]
[1749641429149,17.75132471,164.94,164.89,5.64815984]
[1749641429352,10.39089363,164.93,164.88,10.39089363]
[1749641429753,10.39089363,164.93,164.88,16.03905347]
[1749641430247,17.75132471,164.94,164.88,16.03905347]
[1749641430452,16.45417707,164.93,164.88,16.03905347]
[1749641430657,16.45417707,164.93,164.88,10.39089363]
[1749641431089,10.39089363,164.92,164.87,16.03905347]
[1749641431378,10.39089363,164.89,164.86,5.64815984]
[1749641431558,10.39089363,164.9,164.86,5.64815984]
[1749641432466,16.45544059,164.9,164.85,42.03905347]
[1749641433479,6.06454696,164.9,164.85,42.03905347]
[1749641433663,6.06389207,164.92,164.87,10.39089363]
[1749641434162,16.4547857,164.92,164.87,10.39089363]
[1749641434680,10.39089363,164.92,164.87,10.39089363]
[1749641434974,16.45444466,164.92,164.87,10.39089363]
[1749641435777,16.45444466,164.92,164.85,31.64815984]
[1749641435962,6.06355103,164.92,164.85,42.03905347]
[1749641436165,10.39089363,164.9,164.85,36.39089363]
[1749641436562,6.06355103,164.92,164.86,10.39089363]
[1749641436563,10.39089363,164.91,164.86,10.39089363]
[1749641437158,6.20533988,164.93,164.86,10.39089363]
[1749641437364,10.39089363,164.91,164.86,10.39089363]
[1749641438063,6.20533988,164.93,164.86,10.39089363]
[1749641438277,10.39089363,164.91,164.86,10.39089363]
[1749641439366,6.06390536,164.92,164.86,10.39089363]
[1749641439570,10.39089363,164.91,164.86,10.39089363]
[1749641441287,16.45504114,164.91,164.86,10.39089363]
[1749641441875,16.4545207,164.92,164.87,10.39089363]
[1749641445189,11.6884,164.94,164.85,26.0]
[1749641445381,10.39089363,164.93,164.88,10.39089363]
[1749641446285,16.45413285,164.93,164.88,10.39089363]
[1749641447305,6.06224591,164.96,164.91,10.39089363]
[1749641447468,16.45313954,164.96,164.91,10.39089363]
[1749641447670,10.39089363,164.95,164.9,10.39089363]
[1749641448282,10.39089363,164.94,164.9,10.39089363]
[1749641448589,10.39089363,164.94,164.89,10.39089363]
[1749641449195,6.06294793,164.94,164.89,10.39089363]
[1749641449380,16.45384156,164.94,164.89,10.39089363]
[1749641450197,6.06294793,164.94,164.9,10.39089363]
[1749641450624,10.39089363,164.95,164.9,10.39089363]
[1749641452571,16.45339582,164.95,164.9,10.39089363]
[1749641453271,10.39089363,164.95,164.9,10.39089363]
[1749641453672,10.39089363,164.95,164.9,16.02706988]
[1749641454408,6.06212697,164.96,164.9,16.02706988]
[1749641454568,10.39089363,164.95,164.9,16.02706988]
[1749641454909,10.39089363,164.96,164.91,10.39089363]
[1749641455389,10.39089363,164.96,164.92,5.63617625]
[1749641455772,10.39089363,164.96,164.92,16.02706988]
[1749641456392,16.45312418,164.96,164.92,5.63617625]
[1749641458283,10.39089363,164.96,164.92,5.63617625]
[1749641459582,10.39089363,164.95,164.9,7.53275033]
[1749641459784,10.39089363,164.93,164.88,114.58]
[1749641460015,10.39089363,164.93,164.91,5.6682346]
[1749641460807,6.06244316,164.95,164.91,5.6682346]
[1749641461009,10.39089363,164.94,164.91,5.6682346]
[1749641461895,6.06244316,164.95,164.91,5.6682346]
[1749641462100,16.45333679,164.95,164.91,5.6682346]
[1749641463505,10.39089363,164.94,164.91,5.6682346]
[1749641463894,21.21597865,164.97,164.91,5.6682346]
[1749641464203,10.39089363,164.94,164.91,5.6682346]
[1749641465711,16.45378307,164.94,164.91,5.6682346]
[1749641466607,6.06288944,164.94,164.91,5.6682346]
[1749641466808,16.45378307,164.94,164.91,5.6682346]
[1749641468009,16.45346017,164.95,164.91,5.6682346]
[1749641470409,10.39089363,164.94,164.91,5.6682346]
[1749641472608,6.06170818,164.97,164.91,16.05912823]
[1749641472912,5.40216157,164.98,164.88,24.68]
[1749641472913,10.39089363,164.96,164.92,16.05912823]
[1749641473147,10.39089363,164.97,164.92,16.05912823]
[1749641474210,11.32137653,164.98,164.92,5.6682346]
[1749641474422,21.71227016,164.98,164.93,16.05912823]
[1749641475692,21.71227016,164.98,164.93,10.39089363]
[1749641476297,16.45266594,164.97,164.93,10.39089363]
[1749641476692,16.45266594,164.97,164.92,5.6682346]
[1749641476693,10.39089363,164.95,164.92,5.6682346]
[1749641476893,6.06177231,164.97,164.92,5.6682346]
[1749641477096,10.39089363,164.96,164.92,5.6682346]
[1749641478205,16.45304054,164.96,164.92,5.6682346]
[1749641482918,6.06214691,164.96,164.92,5.6682346]
[1749641483117,16.45304054,164.96,164.92,5.6682346]
[1749641483699,16.4533644,164.95,164.92,5.6682346]
[1749641483901,10.39089363,164.93,164.91,5.6682346]
[1749641484706,10.39089363,164.92,164.91,5.6682346]
[1749641484924,10.39089363,164.92,164.9,5.6682346]
[1749641485113,10.39089363,164.91,164.9,5.6682346]
[1749641485729,10.39089363,164.92,164.9,5.6682346]
[1749641485933,10.39089363,164.94,164.9,5.6682346]
[1749641486532,6.06247077,164.95,164.9,5.6682346]
[1749641486740,16.45260181,164.97,164.92,10.39089363]
[1749641486936,11.32149729,164.98,164.92,16.05912823]
[1749641487119,5.26,164.98,164.94,10.39089363]
[1749641487435,5.26,164.98,164.95,10.39089363]
[1749641487616,5.26,164.98,164.95,16.05912823]
[1749641487940,5.26,164.98,164.96,16.05912823]
[1749641488614,5.26,164.98,164.97,10.39089363]
[1749641490649,5.26,164.98,164.96,5.6682346]
[1749641490838,5.26,164.98,164.97,10.39089363]
[1749641491046,5.26,165.05,164.97,35.05089363]
[1749641491250,5.26,165.05,165.01,10.39089363]
[1749641492218,15.65089363,165.05,164.99,5.6654554]
[1749641492428,15.65089363,165.05,165.01,10.39089363]
[1749641492630,5.26,165.05,165.01,10.39089363]
[1749641492834,15.65089363,165.05,164.99,5.6571948]
[1749641493051,5.26,165.05,165.01,10.39089363]
[1749641493539,21.70973285,165.05,164.98,5.6571948]
[1749641493932,21.70973285,165.05,165.0,10.39089363]
[1749641494139,11.31883922,165.05,165.0,10.39089363]
[1749641494320,21.70973285,165.05,165.0,10.39089363]
[1749641496150,10.39089363,165.04,165.0,10.39089363]
[1749641496325,10.39089363,165.04,164.97,56.3171948]
[1749641496521,10.39089363,165.03,164.98,10.39089363]
[1749641496724,5.26,165.05,165.0,10.39089363]
[1749641496939,11.3187792,165.05,165.0,10.39089363]
[1749641497138,15.65089363,165.05,165.0,10.39089363]
[1749641497338,15.65089363,165.05,165.01,10.39089363]
[1749641497618,5.26,165.05,165.01,10.39089363]
[1749641497823,5.26,165.05,165.02,10.39089363]
[1749641499254,5.26,165.05,165.03,10.39089363]
[1749641500019,5.26,165.05,165.0,26.0]
[1749641500224,5.26,165.05,165.03,10.39089363]
[1749641501532,5.26,165.05,165.01,26.2534]
[1749641501722,5.26,165.05,165.03,10.39089363]
[1749641501924,5.26,165.05,165.04,10.39089363]
[1749641503177,5.26,165.05,165.01,26.2534]
[1749641503324,5.26,165.05,165.02,10.39089363]
[1749641503525,5.26,165.05,165.01,26.2534]
[1749641503743,5.26,165.05,165.02,10.39089363]
[1749641503925,5.26,165.05,165.03,10.39089363]
[1749641505621,5.26,165.05,165.01,26.2534]
[1749641506047,5.26,165.05,165.03,10.39089363]
[1749641508337,5.26,165.05,165.04,26.0]
[1749641509335,10.39089363,165.07,165.04,26.0]
[1749641509549,5.26,165.1,165.04,26.0]
[1749641509727,10.39089363,165.08,165.04,36.39089363]
[1749641509924,5.26,165.1,165.04,26.0]
[1749641510158,10.39089363,165.07,165.04,26.0]
[1749641510539,5.26,165.1,165.04,26.0]
[1749641510852,10.39089363,165.11,165.06,10.39089363]
[1749641511038,17.02139363,165.12,165.07,10.39089363]
[1749641511244,5.26,165.11,165.1,10.39089363]
[1749641511436,5.26,165.11,165.08,26.0]
[1749641511635,5.26,165.11,165.09,10.39089363]
[1749641511850,5.26,165.11,165.08,26.0]
[1749641512058,5.26,165.11,165.09,10.39089363]
[1749641512943,5.26,165.11,165.05,26.0]
[1749641512944,10.39089363,165.1,165.05,26.0]
[1749641513156,10.39089363,165.08,165.05,26.0]
[1749641513552,10.39089363,165.09,165.05,26.0]
[1749641514361,10.39089363,165.08,165.04,10.39089363]
[1749641515051,10.39089363,165.09,165.03,26.0]
[1749641515244,10.39089363,165.09,165.04,10.39089363]
[1749641515560,10.39089363,165.08,165.03,36.39089363]
[1749641516268,10.39089363,165.05,165.03,26.0]
[1749641516448,10.39089363,165.05,165.02,26.0]
[1749641516758,10.39089363,165.05,164.99,108.54964886]
[1749641516759,10.39089363,165.03,164.99,89.9]
[1749641516939,15.65089363,165.02,164.98,10.39089363]
[1749641517139,15.65089363,165.02,164.98,36.39089363]
[1749641517347,10.39089363,165.01,164.96,16.04808843]
[1749641517551,10.39089363,165.0,164.96,5.6571948]
[1749641517743,10.39089363,165.0,164.96,31.6571948]
[1749641517945,10.39089363,164.99,164.98,26.0]
[1749641518184,17.02519363,165.01,164.96,16.04808843]
[1749641518333,6.6343,165.01,164.96,10.39089363]
[1749641518537,10.39089363,165.0,164.98,26.0]
[1749641519766,6.6343,165.01,164.97,26.0]
[1749641520259,10.39089363,165.0,164.97,26.0]
[1749641520761,10.39089363,164.99,164.94,36.39089363]
[1749641521465,5.26,165.02,164.95,10.39089363]
[1749641521759,10.39089363,165.01,164.96,10.39089363]
[1749641523170,10.39089363,165.0,164.95,10.39089363]
[1749641524063,5.26,165.02,164.96,10.39089363]
[1749641524273,10.39089363,165.01,164.96,10.39089363]
[1749641525174,10.39089363,165.0,164.95,16.04808843]
[1749641525474,10.39089363,164.99,164.95,5.6571948]
[1749641526750,10.39089363,164.97,164.95,5.6571948]
[1749641527170,10.39089363,164.97,164.94,31.6571948]
[1749641527357,10.39089363,164.97,164.94,26.0]
[1749641531353,10.39089363,164.97,164.94,31.6571948]
[1749641533971,5.26,165.02,164.94,31.6571948]
[1749641534158,10.39089363,164.98,164.94,31.6571948]
[1749641534956,6.06023877,165.01,164.93,10.39089363]
[1749641534957,10.39089363,164.96,164.93,5.6571948]
[1749641535155,5.26,165.02,164.95,26.0]
[1749641535380,10.39089363,165.0,164.95,26.0]
[1749641535707,10.39089363,164.99,164.94,10.39089363]
[1749641536285,11.32003503,165.02,164.94,10.39089363]
[1749641536457,10.39089363,164.99,164.94,10.39089363]
[1749641536772,10.39089363,164.99,164.94,16.04808843]
[1749641537284,12.52165102,165.03,164.95,10.39089363]
[1749641537481,10.39089363,164.99,164.95,10.39089363]
[1749641537682,10.39089363,164.99,164.94,5.6571948]
[1749641537874,10.39089363,164.96,164.93,31.6571948]
[1749641538071,10.39089363,164.94,164.92,5.6571948]
[1749641538378,10.39089363,164.94,164.92,26.0]
[1749641538679,10.39089363,164.94,164.91,5.6571948]
[1749641538680,10.39089363,164.93,164.89,5.6571948]
[1749641538988,10.39089363,164.92,164.88,5.6571948]
[1749641539161,10.39089363,164.9,164.88,5.6571948]
[1749641539363,10.39089363,164.9,164.87,5.6571948]
[1749641540098,0.14216157,164.94,164.87,5.6571948]
[1749641540270,10.39089363,164.91,164.87,5.6571948]
[1749641541080,10.39089363,164.9,164.87,5.6571948]
[1749641541285,10.39089363,164.9,164.86,5.6571948]
[1749641541988,10.39089363,164.87,164.84,26.0]
[1749641542182,18.64964886,164.92,164.84,31.6571948]
[1749641542183,10.39089363,164.86,164.84,31.6571948]
[1749641542364,10.39089363,164.86,164.84,26.0]
[1749641542566,6.6268,164.9,164.84,26.0]
[1749641542567,10.39089363,164.87,164.84,26.0]
[1749641542761,10.39089363,164.89,164.84,42.04808843]
[1749641542962,10.39089363,164.88,164.84,36.39089363]
[1749641543158,10.39089363,164.87,164.84,26.0]
[1749641543385,10.39089363,164.88,164.84,26.0]
[1749641543571,10.39089363,164.88,164.84,36.39089363]
[1749641543777,10.39089363,164.88,164.84,26.0]
[1749641543974,10.39089363,164.87,164.84,26.0]
[1749641544167,10.39089363,164.85,164.82,5.6571948]
[1749641544491,10.39089363,164.85,164.81,5.6571948]
[1749641544686,10.39089363,164.85,164.81,16.04808843]
[1749641545483,10.39089363,164.85,164.81,10.39089363]
[1749641546497,10.39089363,164.85,164.8,36.39089363]
[1749641546696,6.06495629,164.89,164.8,36.39089363]
[1749641546992,10.39089363,164.85,164.8,36.39089363]
[1749641549788,10.39089363,164.86,164.81,10.39089363]
[1749641550168,6.06512328,164.88,164.8,36.39089363]
[1749641550169,10.39089363,164.85,164.8,36.39089363]
[1749641550369,10.39089363,164.86,164.81,10.39089363]
[1749641554477,10.39089363,164.87,164.82,10.39089363]
[1749641555683,10.39089363,164.86,164.81,10.39089363]
[1749641557306,10.39089363,164.86,164.82,10.39089363]
[1749641558478,10.39089363,164.86,164.8,26.0]
[1749641558677,10.39089363,164.85,164.81,10.39089363]
[1749641559292,10.39089363,164.85,164.8,36.39089363]
[1749641559600,6.06464916,164.89,164.8,36.39089363]
[1749641559601,10.39089363,164.83,164.8,26.0]
[1749641560181,10.39089363,164.83,164.78,10.39089363]
[1749641561601,10.39089363,164.84,164.79,10.39089363]
[1749641562192,10.39089363,164.84,164.77,33.3128948]
[1749641562403,10.39089363,164.83,164.79,10.39089363]
[1749641563090,10.39089363,164.84,164.8,10.39089363]
[1749641563403,10.39089363,164.86,164.81,10.39089363]
[1749641563706,10.39089363,164.85,164.8,36.39089363]
[1749641564814,10.39089363,164.84,164.8,36.39089363]
[1749641565304,10.39089363,164.84,164.81,4.492226]
[1749641565496,10.39089363,164.84,164.8,36.39089363]
[1749641565808,10.39089363,164.83,164.81,4.49262234]
[1749641566005,10.39089363,164.83,164.79,36.39089363]
[1749641566204,10.39089363,164.83,164.8,4.49285582]
[1749641566504,10.39089363,164.83,164.81,4.49285582]
[1749641566702,10.39089363,164.84,164.8,10.39089363]
[1749641566911,10.39089363,164.84,164.81,4.4927524]
[1749641567120,10.39089363,164.84,164.8,10.39089363]
[1749641567313,10.39089363,164.84,164.81,4.49305331]
[1749641567496,6.0658739,164.86,164.8,10.39089363]
[1749641567697,10.39089363,164.84,164.81,4.49288579]
[1749641567901,10.39089363,164.84,164.8,10.39089363]
[1749641568119,10.39089363,164.84,164.81,4.49288702]
[1749641568421,10.39089363,164.84,164.8,10.39089363]
[1749641568627,10.39089363,164.84,164.81,4.49349906]
[1749641568796,10.39089363,164.84,164.8,10.39089363]
[1749641569123,10.39089363,164.84,164.81,4.49349178]
[1749641569419,10.39089363,164.84,164.79,36.39089363]
[1749641569598,10.39089363,164.84,164.8,4.49459183]
[1749641569802,10.39089363,164.84,164.81,4.49459183]
[1749641570000,10.39089363,164.84,164.79,36.39089363]
[1749641570201,10.39089363,164.84,164.8,4.49463451]
[1749641570517,10.39089363,164.84,164.81,4.49463451]
[1749641570734,10.39089363,164.84,164.82,4.49573114]
[1749641570910,10.39089363,164.84,164.79,36.39089363]
[1749641571114,10.39089363,164.84,164.8,4.49571138]
[1749641571303,10.39089363,164.84,164.81,4.49571138]